bitfinex/quotes_SOLUSD_20250901
["timestamp","ask_amount","ask_price","bid_price","bid_amount"]
[1756710957153,0.2,198.51,198.47,5.93985126]
[1756710957356,0.2,198.51,198.49,43.06]
[1756710957556,0.2,198.51,198.49,48.99985126]
[1756710957869,0.2,198.51,198.44,17.63757306]
[1756710958176,6.13985126,198.51,198.45,48.97985126]
[1756710958342,5.93985126,198.5,198.46,48.07879875]
[1756710959356,5.93985126,198.5,198.46,5.03879875]
[1756710959539,5.93985126,198.5,198.26,5.93985126]
[1756710959540,13.73775558,198.46,198.26,5.93985126]
[1756710959857,5.93985126,198.31,198.27,4.72]
[1756710960167,5.93985126,198.32,198.27,4.72]
[1756710960666,5.93985126,198.36,198.28,5.043373]
[1756710960848,5.93985126,198.3,198.28,5.043373]
[1756710961373,5.93985126,198.32,198.28,5.043373]
[1756710961565,0.14216157,198.42,198.28,17.65180551]
[1756710961566,26.14216157,198.42,198.28,17.65180551]
[1756710961769,53.17520037,198.6,198.35,5.93985126]
[1756710961770,25.18290053,198.55,198.35,5.93985126]
[1756710961960,25.18290053,198.55,198.28,17.65180551]
[1756710961961,5.93985126,198.42,198.36,50.51985126]
[1756710962146,26.0,198.45,198.36,5.93985126]
[1756710962348,5.93985126,198.41,198.37,44.62]
[1756710962648,5.93985126,198.42,198.38,5.04083072]
[1756710963079,5.939851,198.54,198.38,23.5827588]
[1756710963258,5.93985126,198.46,198.39,0.14216157]
[1756710963572,5.93985126,198.44,198.4,44.56]
[1756710963756,5.03707124,198.53,198.4,44.56]
[1756710963757,5.93985126,198.45,198.4,44.56]
[1756710964268,5.93985126,198.44,198.38,23.5827588]
[1756710964472,5.93985126,198.44,198.41,44.56]
[1756710964675,26.0,198.48,198.42,5.03981453]
[1756710964969,26.0,198.47,198.42,5.03981453]
[1756710965186,5.93985126,198.44,198.43,44.5]
[1756710965388,31.09807602,198.49,198.43,44.5]
[1756710965671,5.93985126,198.44,198.43,44.5]
[1756710965850,5.93985126,198.45,198.43,44.5]
[1756710966050,26.0,198.47,198.43,44.5]
[1756710966251,5.93985126,198.45,198.43,44.5]
[1756710966783,5.93985126,198.45,198.44,5.03930659]
[1756710966963,5.93985126,198.46,198.44,5.03930659]
[1756710967569,5.93985126,198.46,198.43,44.5]
[1756710967570,5.93985126,198.45,198.43,44.5]
[1756710967868,5.93985126,198.45,198.43,49.53946463]
[1756710969277,13.65559401,198.49,198.43,49.53946463]
[1756710969461,5.93985126,198.46,198.43,49.53946463]
[1756710969787,5.93985126,198.45,198.43,49.53946463]
[1756710970484,13.65559401,198.49,198.43,49.53946463]
[1756710970788,5.93985126,198.46,198.43,49.53946463]
[1756710971782,5.93985126,198.45,198.43,49.53946463]
[1756710972084,5.93985126,198.45,198.43,5.03946463]
[1756710972382,13.65559401,198.49,198.44,44.2]
[1756710972582,5.93985126,198.45,198.44,44.2]
[1756710973272,13.65559401,198.49,198.44,44.2]
[1756710973471,5.93985126,198.45,198.44,49.23930659]
[1756710973871,13.65559401,198.49,198.44,49.23930659]
[1756710974081,5.93985126,198.45,198.44,49.23930659]
[1756710974687,0.06,198.49,198.44,49.23930659]
[1756710974890,5.93985126,198.48,198.44,49.23930659]
[1756710976696,5.93985126,198.48,198.44,61.83757306]
[1756710977485,0.06,198.49,198.44,61.83757306]
[1756710977797,5.93985126,198.46,198.45,43.9]
[1756710978479,5.93985126,198.47,198.45,43.9]
[1756710978678,5.93985126,198.47,198.46,5.03879875]
[1756710979892,5.93985126,198.47,198.46,43.92]
[1756710980095,5.93985126,198.47,198.43,5.03956055]
[1756710980277,5.93985126,198.45,198.44,43.82]
[1756710980786,0.06,198.49,198.45,5.03905265]
[1756710980989,5.93985126,198.46,198.45,5.03905265]
[1756710981294,0.14216157,198.41,198.28,0.03]
[1756710981468,13.59559401,198.35,198.31,44.66]
[1756710981674,5.93985126,198.32,198.31,44.66]
[1756710982194,5.93985126,198.32,198.28,0.03]
[1756710982375,5.93985126,198.29,198.28,0.03]
[1756710982579,39.59559401,198.35,198.28,44.67]
[1756710982774,5.93985126,198.29,198.28,44.67]
[1756710982976,5.93985126,198.29,198.28,49.713373]
[1756710984511,5.93985126,198.29,198.28,0.03]
[1756710985318,5.93985126,198.29,198.28,44.63]
[1756710985476,10.98296992,198.29,198.28,44.63]
[1756710985677,10.98296992,198.29,198.28,0.03]
[1756710986098,5.93985126,198.29,198.28,0.03]
[1756710986894,31.93985126,198.29,198.28,0.03]
[1756710991184,26.0,198.29,198.28,0.03]
[1756710991385,31.93985126,198.29,198.28,0.03]
[1756710991698,5.93985126,198.29,198.28,0.03]
[1756710992407,5.93985126,198.29,198.26,49.67387625]
[1756710992408,13.59559401,198.28,198.26,0.03]
[1756710992592,44.78189177,198.25,198.24,0.03]
[1756710992791,13.59559401,198.2,198.12,0.06]
[1756710993192,5.93985126,198.16,198.12,0.06]
[1756710993491,13.59559401,198.2,198.12,0.06]
[1756710993492,5.93985126,198.15,198.12,0.06]
[1756710994195,5.93985126,198.14,198.12,0.06]
[1756710996025,5.93985126,198.13,198.08,5.07846526]
[1756710996225,5.93985126,198.11,198.09,45.38]
[1756710996397,5.93985126,198.1,198.09,45.38]
[1756710996590,13.59559401,198.16,198.09,45.38]
[1756710996910,5.93985126,198.11,198.09,45.38]
[1756710997790,5.93985126,198.11,198.1,5.04795557]
[1756710999994,5.93985126,198.11,198.09,5.04812749]
[1756711000196,5.93985126,198.1,198.08,5.07841578]
[1756711000516,5.93985126,198.11,198.09,45.16]
[1756711000694,5.93985126,198.12,198.09,45.16]
[1756711001010,5.93985126,198.12,198.1,0.03]
[1756711001212,5.93985126,198.11,198.1,0.03]
[1756711001506,26.0,198.15,198.1,0.03]
[1756711001714,5.93985126,198.12,198.1,0.03]
[1756711001900,5.93985126,198.12,198.1,5.07795557]
[1756711002496,5.93985126,198.11,198.1,5.07795557]
[1756711004524,5.93985126,198.12,198.1,5.07795557]
[1756711004823,2.63273994,198.19,198.1,23.63769577]
[1756711005028,2.63779748,198.22,198.12,5.93985126]
[1756711005029,5.93985126,198.18,198.12,5.93985126]
[1756711005199,5.93985126,198.18,198.13,44.94]
[1756711005703,5.93985126,198.2,198.14,5.93985126]
[1756711005897,5.93985126,198.18,198.14,5.0469365]
[1756711006554,5.93985126,198.19,198.14,5.0469365]
[1756711007520,5.93985126,198.18,198.14,5.0469365]
[1756711008756,2.63779748,198.22,198.14,5.0469365]
[1756711010054,2.63779748,198.22,198.14,23.60412903]
[1756711010225,5.93985126,198.2,198.14,23.60412903]
[1756711010426,5.93985126,198.19,198.14,17.66427777]
[1756711010831,5.93985126,198.17,198.14,5.0469365]
[1756711011525,5.93985126,198.17,198.15,44.64]
[1756711011830,5.93985126,198.18,198.15,44.64]
[1756711012335,5.93985126,198.18,198.16,5.04642712]
[1756711012846,5.93985126,198.18,198.17,44.62]
[1756711013150,5.93985126,198.19,198.17,44.62]
[1756711013324,2.63779748,198.22,198.17,44.62]
[1756711013529,20.0,198.32,198.17,44.62]
[1756711013530,13.59559401,198.35,198.17,50.55985126]
[1756711013741,5.93985126,198.26,198.2,5.93985126]
[1756711014034,5.93985126,198.26,198.21,44.54]
[1756711014457,5.93985126,198.26,198.22,5.0448996]
[1756711015558,5.93985126,198.23,198.01,20.0]
[1756711015750,5.93985126,198.14,198.06,5.93985126]
[1756711015941,5.93985126,198.11,198.1,5.07794477]
[1756711017945,5.93985126,198.12,198.1,5.07794477]
[1756711018732,5.93985126,198.11,198.1,5.07794477]
[1756711020963,5.93985126,198.11,198.1,44.97]
[1756711023341,5.93985126,198.11,198.1,44.93]
[1756711028569,5.93985126,198.11,198.1,0.03]
[1756711028749,5.93985126,198.11,198.1,44.73]
[1756711029251,2.63863957,198.14,198.1,49.77785249]
[1756711029457,5.93985126,198.11,198.1,49.77785249]
[1756711030975,5.93985126,198.12,198.1,49.77785249]
[1756711031162,2.63863957,198.14,198.11,5.93985126]
[1756711031482,5.93985126,198.19,198.13,5.93985126]
[1756711031663,5.93985126,198.19,198.14,44.54]
[1756711031839,2.63811685,198.22,198.15,5.93985126]
[1756711032043,5.93985126,198.21,198.15,5.93985126]
[1756711032469,5.93985126,198.21,198.16,5.04642712]
[1756711032672,0.06,198.24,198.16,5.04642712]
[1756711032673,5.93985126,198.18,198.16,5.04642712]
[1756711032962,5.93985126,198.17,198.16,44.52]
[1756711034547,5.93985126,198.17,198.16,49.56642712]
[1756711034953,5.93985126,198.18,198.16,49.56642712]
[1756711036051,5.93985126,198.19,198.16,49.56642712]
[1756711036945,0.06,198.24,198.16,49.56642712]
[1756711037146,5.93985126,198.23,198.17,5.93985126]
[1756711037356,0.06,198.24,198.18,5.93985126]
[1756711037554,0.06,198.24,198.19,50.29985126]
[1756711037759,5.99985126,198.24,198.19,44.36]
[1756711037958,5.99985126,198.24,198.2,5.04540867]
[1756711039553,5.93985126,198.22,198.2,5.04540867]
[1756711039865,0.06,198.24,198.2,5.04540867]
[1756711040172,5.93985126,198.23,198.2,5.04540867]
[1756711040553,5.93985126,198.23,198.2,17.65893036]
[1756711040769,0.06,198.24,198.2,17.65893036]
[1756711040959,5.99985126,198.24,198.2,17.65893036]
[1756711041466,0.06,198.24,198.2,17.65893036]
[1756711042577,5.93985126,198.23,198.21,44.14]
[1756711042955,5.93985126,198.23,198.22,44.12]
[1756711043470,0.06,198.24,198.22,44.12]
[1756711043956,0.06,198.24,198.23,5.0446451]
[1756711045980,0.06,198.24,198.2,18.55507739]
[1756711046172,0.06,198.24,198.21,43.98]
[1756711046859,0.06,198.24,198.2,18.55507739]
[1756711047180,0.06,198.24,198.21,43.92]
[1756711047358,5.9415557,198.23,198.22,43.92]
[1756711047566,5.9415557,198.23,198.2,12.61352169]
[1756711047884,5.9415557,198.23,198.21,43.92]
[1756711048386,5.9415557,198.23,198.22,48.9448996]
[1756711049205,5.9415557,198.23,198.17,12.61525317]
[1756711049367,5.9415557,198.2,198.18,43.84]
[1756711050070,5.9415557,198.19,198.16,5.04642712]
[1756711050281,5.9415557,198.19,198.18,5.04591785]
[1756711050477,5.9415557,198.2,198.18,5.04591785]
[1756711051990,5.9415557,198.19,198.18,5.04591785]
[1756711052689,5.9415557,198.19,198.18,48.76591785]
[1756711052877,5.9415557,198.19,198.18,5.04591785]
[1756711053188,5.9415557,198.19,198.18,43.68]
[1756711054397,5.9415557,198.19,198.18,48.72591785]
[1756711055089,6.0015557,198.24,198.18,48.72591785]
[1756711055591,5.9415557,198.2,198.18,48.72591785]
[1756711055907,5.9415557,198.21,198.18,48.72591785]
[1756711056472,5.9415557,198.21,198.18,61.34071248]
[1756711056768,5.9415557,198.21,198.18,61.37071248]
[1756711056983,5.9415557,198.22,198.18,61.37071248]
[1756711057976,0.06,198.24,198.21,5.9415557]
[1756711058177,0.06,198.26,198.23,5.9415557]
[1756711058375,0.06,198.26,198.24,43.5]
[1756711058574,0.06,198.28,198.24,49.4415557]
[1756711058784,0.06,198.28,198.25,10.98569189]
[1756711061013,0.06,198.28,198.26,5.9415557]
[1756711061199,0.06,198.28,198.27,43.4]
[1756711061722,1e-08,198.28,198.27,54.38518307]
[1756711061921,1e-08,198.28,198.27,48.44362737]
[1756711064097,1e-08,198.28,198.27,48.38362737]
[1756711064295,1e-08,198.28,198.27,5.04362737]
[1756711064504,1e-08,198.28,198.27,48.30362737]
[1756711065831,1e-08,198.28,198.27,54.24518307]
[1756711066424,0.06,198.33,198.27,66.85425151]
[1756711066622,0.06,198.33,198.3,5.9415557]
[1756711066796,0.06,198.33,198.32,5.9415557]
[1756711067222,1e-08,198.33,198.32,5.9415557]
[1756711067641,1e-08,198.33,198.32,45.67931128]
[1756711067805,1e-08,198.33,198.32,19.67931128]
[1756711068119,1e-08,198.33,198.32,17.44510733]
[1756711068417,1e-08,198.33,198.32,22.48746311]
[1756711069617,0.2,198.44,198.35,39.59559401]
[1756711069823,0.2,198.44,198.4,29.70735175]
[1756711070004,0.2,198.44,198.41,43.1]
[1756711070530,0.2,198.44,198.42,5.03981453]
[1756711070716,0.2,198.44,198.43,43.1]
[1756711071622,0.2,198.44,198.43,5.03956055]
[1756711071815,0.2,198.44,198.43,48.09956055]
[1756711074238,3.90735175,198.44,198.43,5.03956055]
[1756711074412,3.90735175,198.44,198.43,47.99956055]
[1756711075218,0.2,198.44,198.43,47.99956055]
[1756711079041,0.2,198.44,198.43,5.03956055]
[1756711079518,0.2,198.44,198.43,47.79956055]
[1756711082435,0.2,198.44,198.43,47.71956055]
[1756711083523,0.2,198.44,198.43,47.65956055]
[1756711084752,0.2,198.44,198.41,5.04006854]
[1756711085049,0.2,198.44,198.42,42.62]
[1756711085559,0.2,198.44,198.42,46.32735175]
[1756711085712,0.06,198.46,198.43,3.70735175]
[1756711085907,0.06,198.46,198.44,72.22735175]
[1756711086413,0.06,198.48,198.44,72.22735175]
[1756711086414,0.06,198.48,198.45,3.70735175]
[1756711086614,0.06,198.48,198.46,42.5]
[1756711087230,0.06,198.48,198.47,5.03854486]
[1756711087742,0.06,198.48,198.47,8.74589661]
[1756711087955,0.06,198.49,198.47,8.74589661]
[1756711088116,1e-08,198.49,198.48,85.90510733]
[1756711088620,1e-08,198.51,198.5,26.0]
[1756711088827,1e-08,198.51,198.5,68.44]
[1756711089343,1e-08,198.51,198.5,77.32729669]
[1756711089546,1e-08,198.51,198.5,73.61994494]
[1756711089718,1e-08,198.51,198.5,77.32729669]
[1756711089920,1e-08,198.51,198.5,90.9228907]
[1756711091317,1e-08,198.51,198.5,48.4828907]
[1756711091519,1e-08,198.51,198.5,90.8428907]
[1756711092727,1e-08,198.51,198.5,48.4828907]
[1756711092932,1e-08,198.51,198.5,90.8228907]
[1756711093526,0.06,198.53,198.51,0.14216157]
[1756711093527,1e-08,198.53,198.51,0.14216157]
[1756711093721,1e-08,198.53,198.52,59.72510733]
[1756711093916,1e-08,198.53,198.52,64.76238317]
[1756711094750,1e-08,198.53,198.52,68.46973517]
[1756711095252,0.06,198.6,198.56,0.14216157]
[1756711095420,0.06,198.6,198.57,45.94735175]
[1756711096035,0.06,198.6,198.58,5.03575385]
[1756711096246,0.06,198.6,198.59,42.22]
[1756711097434,0.06,198.6,198.58,8.7431056]
[1756711097753,0.06,198.6,198.59,42.18]
[1756711098557,1e-08,198.6,198.59,51.06501359]
[1756711099052,1e-08,198.6,198.59,64.6606076]
[1756711099419,1e-08,198.6,198.59,66.6773976]
[1756711100534,1e-08,198.63,198.62,26.0]
[1756711100731,1e-08,198.63,198.62,71.96951332]
[1756711101030,0.06,198.65,198.63,0.14216157]
[1756711101336,0.06,198.65,198.64,42.08]
[1756711101937,1e-08,198.65,198.64,45.92951332]
[1756711102431,1e-08,198.65,198.64,64.55934011]
[1756711103354,1e-08,198.65,198.64,5.17639435]
[1756711103561,1e-08,198.65,198.64,50.8837461]
[1756711104065,1e-08,198.65,198.64,64.47934011]
[1756711106048,1e-08,198.65,198.64,64.98276338]
[1756711106449,1e-08,198.65,198.64,64.47934011]
[1756711106662,1e-08,198.65,198.64,64.98276338]
[1756711109372,1e-08,198.65,198.64,66.99884138]
[1756711110852,1e-08,198.65,198.64,24.49541811]
[1756711111177,1e-08,198.65,198.64,22.47934011]
[1756711111349,1e-08,198.65,198.64,64.25934011]
[1756711113590,1e-08,198.65,198.64,66.27562211]
[1756711113965,1e-08,198.67,198.66,44.62931997]
[1756711114177,1e-08,198.68,198.67,13.73775558]
[1756711114383,1e-08,198.68,198.67,17.44510733]
[1756711115181,0.06,198.7,198.68,0.14216157]
[1756711115375,0.06,198.7,198.69,45.42735175]
[1756711115581,0.06,198.7,198.69,3.70735175]
[1756711115765,0.06,198.7,198.69,45.38735175]
[1756711116756,0.06,198.7,198.69,50.42031767]
[1756711116960,0.06,198.7,198.69,50.56247924]
[1756711117184,1e-08,198.7,198.69,76.56247924]
[1756711117568,0.06,198.75,198.7,0.14216157]
[1756711117771,0.06,198.75,198.71,41.64]
[1756711117996,0.06,198.75,198.72,41.62]
[1756711118961,0.06,198.75,198.72,46.65220611]
[1756711119164,3.76735175,198.75,198.72,46.65220611]
[1756711119867,3.76735175,198.75,198.72,46.61220611]
[1756711119868,3.76735175,198.73,198.72,46.61220611]
[1756711123891,0.06,198.73,198.72,46.61220611]
[1756711126192,0.06,198.73,198.72,46.51220611]
[1756711129676,3.76735175,198.73,198.7,5.03271263]
[1756711130009,3.70735175,198.71,198.7,5.03271263]
[1756711130179,3.70735175,198.71,198.7,46.51271263]
[1756711132899,0.06,198.73,198.7,50.22006438]
[1756711133090,0.06,198.73,198.72,29.70735175]
[1756711133290,0.2,198.93,198.81,26.0]
[1756711133597,0.2,198.93,198.9,3.70735175]
[1756711134203,0.2,198.93,198.92,3.70735175]
[1756711134405,0.2,198.93,198.92,45.96735175]
[1756711134880,0.2,198.93,198.92,50.99449834]
[1756711135281,5.02338484,199.07,198.92,63.70452638]
[1756711135483,3.70735175,199.02,198.95,3.70735175]
[1756711135692,3.70735175,199.02,198.96,42.22]
[1756711135897,3.70735175,199.02,198.97,42.24]
[1756711136511,3.70735175,199.02,198.98,42.22]
[1756711136807,3.70735175,199.02,198.99,42.22]
[1756711136987,25.93450646,199.04,198.99,42.22]
[1756711137315,3.70735175,199.03,198.99,42.22]
[1756711137530,18.61895382,199.07,198.99,42.22]
[1756711137807,3.70735175,199.03,198.99,42.22]
[1756711138106,13.59559401,199.07,198.99,42.22]
[1756711138308,3.70735175,199.03,198.99,42.22]
[1756711138608,3.70735175,199.03,198.99,47.24527349]
[1756711138811,3.70735175,199.02,198.99,42.22]
[1756711139489,3.70735175,199.02,198.99,47.24527452]
[1756711140306,26.0,199.03,199.0,42.16]
[1756711140511,3.70735175,199.01,199.0,42.16]
[1756711140697,3.70735175,199.01,198.94,5.02664119]
[1756711140898,3.70735175,198.99,198.95,42.12]
[1756711141104,26.0,199.03,198.95,42.12]
[1756711141306,3.70735175,199.0,198.95,42.12]
[1756711142104,26.0,199.04,198.96,3.70735175]
[1756711142407,3.70735175,199.02,198.96,3.70735175]
[1756711142610,26.0,199.06,198.97,3.70735175]
[1756711142917,3.70735175,199.03,198.98,47.08563071]
[1756711143117,3.70735175,199.03,198.99,42.06]
[1756711143908,3.70735175,199.02,198.99,42.06]
[1756711144123,3.70735175,199.02,198.98,5.02563071]
[1756711144329,3.70735175,199.01,198.98,5.02563071]
[1756711144545,3.70735175,199.01,198.99,42.0]
[1756711144727,3.70735175,199.0,198.9,12.56910227]
[1756711145036,3.70735175,198.98,198.92,3.70735175]
[1756711145343,26.0,199.01,198.92,3.70735175]
[1756711145648,3.70735175,198.98,198.92,3.70735175]
[1756711145832,3.70735175,198.98,198.91,59.59589763]
[1756711145833,13.59559401,199.04,198.94,3.70735175]
[1756711146007,13.59559401,199.04,198.95,42.02]
[1756711146212,3.70735175,199.0,198.95,42.02]
[1756711146411,3.70735175,198.99,198.96,42.02]
[1756711146940,3.70735175,198.99,198.96,47.04590799]
[1756711147308,3.70735175,198.99,198.96,5.02590799]
[1756711147519,3.70735175,198.99,198.97,41.98]
[1756711147714,0.06,199.02,198.97,41.98]
[1756711148012,3.70735175,198.99,198.97,41.98]
[1756711148202,3.70735175,198.98,198.95,5.05636245]
[1756711148405,3.70735175,198.96,198.95,0.03]
[1756711148605,3.70735175,198.96,198.95,41.99]
[1756711149408,3.70735175,198.96,198.95,47.01638853]
[1756711149814,3.70735175,198.96,198.95,5.05638853]
[1756711150030,3.70735175,198.96,198.95,47.01638853]
[1756711150524,3.70735175,198.96,198.95,41.97]
[1756711150728,3.70735175,198.96,198.95,0.03]
[1756711150905,3.70735175,198.96,198.95,41.97]
[1756711151420,3.70735175,198.96,198.95,41.95]
[1756711151820,3.70735175,198.98,198.95,41.95]
[1756711152017,3.70735175,198.99,198.95,41.95]
[1756711152625,3.70735175,198.98,198.95,0.03]
[1756711152806,3.70735175,198.97,198.96,41.88]
[1756711154034,3.70735175,198.97,198.96,41.86]
[1756711154212,3.70735175,198.98,198.96,41.86]
[1756711154734,26.0,199.01,198.97,5.02588329]
[1756711154935,3.70735175,198.99,198.97,5.02588329]
[1756711155129,26.0,199.01,198.97,5.02588329]
[1756711155130,3.70735175,199.01,198.97,5.02588329]
[1756711155537,0.06,199.02,198.97,5.02588329]
[1756711155837,3.70735175,199.01,198.97,5.02588329]
[1756711156144,3.70735175,199.01,198.97,17.59059153]
[1756711156326,0.06,199.02,198.97,17.59059153]
[1756711156327,0.06,199.02,198.97,21.29794328]
[1756711156637,0.01267226,199.02,198.99,8.7327299]
[1756711156840,0.01267226,199.02,199.0,41.8]
[1756711157141,0.06,199.04,199.03,3.70735175]
[1756711157318,0.06,199.04,199.03,45.48735175]
[1756711157827,3.70735175,199.09,199.03,45.48735175]
[1756711158135,3.70735175,199.09,199.03,46.9190228]
[1756711158350,13.59559401,199.21,199.05,26.0]
[1756711158641,3.70735175,199.13,199.05,34.7312151]
[1756711158844,3.70735175,199.11,199.05,34.7312151]
[1756711159228,3.70735175,199.11,199.05,31.02386335]
[1756711159428,3.70735175,199.11,199.05,34.7312151]
[1756711159624,3.70735175,199.11,199.05,31.02386335]
[1756711160335,26.0,199.15,199.05,34.7312151]
[1756711160538,3.70735175,199.12,199.05,34.7312151]
[1756711161121,1e-08,199.06,199.05,48.46897068]
[1756711161733,3.70735175,199.11,199.05,61.02862905]
[1756711161927,3.70735175,199.11,199.06,41.78]
[1756711162121,26.0,199.15,199.06,41.78]
[1756711162339,26.0,199.16,199.06,45.48735175]
[1756711162537,18.7576172,199.21,199.08,3.70735175]
[1756711162838,29.70735175,199.2,199.1,5.0226017]
[1756711163045,3.70735175,199.15,199.11,41.74]
[1756711163340,29.70735175,199.2,199.11,41.74]
[1756711163341,3.70735175,199.14,199.11,41.74]
[1756711163838,3.70735175,199.14,199.12,41.72]
[1756711164151,3.70735175,199.14,199.13,5.02184502]
[1756711164848,34.72743906,199.2,199.13,5.02184502]
[1756711165232,3.70735175,199.14,199.13,5.02184502]
[1756711165750,3.70735175,199.15,199.13,5.02184502]
[1756711166253,29.70735175,199.2,199.13,5.02184502]
[1756711166254,3.70735175,199.14,199.13,5.02184502]
[1756711166427,3.76735175,199.14,199.13,5.02184502]
[1756711166622,0.795947,199.14,199.13,5.02184502]
[1756711166928,0.06,199.14,199.13,5.02184502]
[1756711167549,3.76735175,199.14,199.13,5.02184502]
[1756711167925,0.06,199.14,199.13,5.02184502]
[1756711168544,3.76735175,199.14,199.12,5.02205339]
[1756711168742,0.06,199.14,199.13,41.6]
[1756711169533,0.06,199.14,199.13,41.58]
[1756711170034,3.76735175,199.14,199.13,41.58]
[1756711170228,3.76735175,199.14,199.13,41.54]
[1756711171049,3.76735175,199.14,199.13,46.56184502]
[1756711172120,0.06,199.14,199.13,46.56184502]
[1756711172350,3.76735175,199.14,199.13,46.56184502]
[1756711172525,0.06,199.14,199.13,46.56184502]
[1756711172739,3.76735175,199.14,199.13,46.56184502]
[1756711174733,0.06,199.16,199.13,46.56184502]
[1756711176638,0.85263539,199.18,199.13,46.56184502]
[1756711176842,0.85263539,199.18,199.13,59.11645758]
[1756711177621,26.0,199.24,199.13,59.11645758]
[1756711177829,3.70735175,199.23,199.17,3.70735175]
[1756711178052,3.70735175,199.23,199.18,41.46]
[1756711178249,12.54018175,199.36,199.19,3.70735175]
[1756711178426,3.70735175,199.25,199.2,41.46]
[1756711178627,3.70735175,199.3,199.2,41.46]
[1756711178961,3.70735175,199.27,199.2,45.16735175]
[1756711179127,13.59559401,199.38,199.2,41.46]
[1756711179337,5.01572709,199.38,199.21,21.27675087]
[1756711179671,26.0,199.35,199.22,3.70735175]
[1756711179845,3.70735175,199.28,199.23,41.44]
[1756711180276,13.59559401,199.37,199.23,41.44]
[1756711180561,3.70735175,199.29,199.23,45.14735175]
[1756711181163,3.70735175,199.29,199.24,5.01907247]
[1756711181661,31.0166446,199.34,199.24,17.56675365]
[1756711181844,3.70735175,199.29,199.24,17.56675365]
[1756711182044,30.0166446,199.34,199.24,17.56675365]
[1756711182355,3.70735175,199.29,199.24,17.56675365]
[1756711183672,25.0,199.34,199.24,21.2741054]
[1756711183840,3.70735175,199.3,199.24,17.56675365]
[1756711184048,26.0,199.34,199.24,17.56675365]
[1756711184369,3.70735175,199.29,199.25,41.44]
[1756711184946,3.70735175,199.3,199.25,41.44]
[1756711185356,3.70735175,199.3,199.26,5.0185687]
[1756711186059,3.70735175,199.3,199.26,10.08937342]
[1756711186258,15.15348631,199.42,199.26,22.63579518]
[1756711186445,0.06,199.29,199.26,26.34314693]
[1756711186652,3.70735175,199.32,199.26,13.79672517]
[1756711187438,26.0,199.36,199.28,3.70735175]
[1756711187643,3.70735175,199.35,199.29,45.12735175]
[1756711188874,31.01529665,199.39,199.29,50.14496916]
[1756711189066,3.70735175,199.35,199.29,50.14496916]
[1756711189244,3.70735175,199.36,199.3,3.70735175]
[1756711189641,31.01529665,199.39,199.3,3.70735175]
[1756711189962,3.70735175,199.34,199.31,41.42]
[1756711190567,31.01529665,199.39,199.31,41.42]
[1756711190770,3.70735175,199.34,199.31,41.42]
[1756711191149,3.70735175,199.32,199.26,8.77815647]
[1756711191449,3.70735175,199.31,199.26,5.07080472]
[1756711191651,3.70735175,199.31,199.25,34.72611012]
[1756711191847,3.70735175,199.29,199.23,3.70735175]
[1756711192063,3.70735175,199.29,199.24,41.42]
[1756711193367,3.70735175,199.29,199.23,8.72661673]
[1756711193673,3.70735175,199.29,199.25,41.42]
[1756711193968,3.70735175,199.27,199.23,4.97963198]
[1756711194286,3.70735175,199.27,199.26,41.42]
[1756711194487,17.5579412,199.34,199.26,41.42]
[1756711194691,3.70735175,199.27,199.26,41.42]
[1756711195261,3.70735175,199.27,199.22,26.0]
[1756711195468,3.70735175,199.23,199.14,13.59559401]
[1756711195682,3.70735175,199.23,199.18,13.59559401]
[1756711195896,3.70735175,199.23,199.19,41.4]
[1756711196568,5.0185687,199.26,199.19,41.4]
[1756711196766,17.56499046,199.26,199.14,5.02159284]
[1756711196970,3.70735175,199.2,199.15,41.4]
[1756711197170,3.70735175,199.19,199.15,46.39369439]
[1756711197380,3.70735175,199.19,199.15,4.99369439]
[1756711197670,5.01882057,199.25,199.16,41.4]
[1756711197893,3.70735175,199.19,199.16,41.4]
[1756711198100,3.70735175,199.21,199.16,41.4]
[1756711199192,3.70735175,199.21,199.17,5.02083647]
[1756711199892,5.01926913,199.24,199.16,41.4]
[1756711200081,3.70735175,199.18,199.16,41.4]
[1756711200287,3.70735175,199.17,199.13,0.03]
[1756711200493,3.70735175,199.15,199.14,32.4]
[1756711200792,3.70735175,199.18,199.14,32.4]